[Event "Biel Master Tournament 2019"]
[Site "Biel"]
[Date "2019.07.29"]
[Round "7.12"]
[White "Drozdowski, Kacper"]
[Black "Gopal G.N."]
[Result "0-1"]
[ECO "B55"]
[WhiteElo "2485"]
[BlackElo "2594"]
[Annotator "ChessBase"]
[PlyCount "92"]
[EventDate "2019.07.20"]
[EventType "swiss"]
[EventCountry "SUI"]
[SourceTitle "playchess.com"]
[Source "ChessBase"]
[SourceQuality "1"]
[TimeControl "40/5400+30:1800+30"]

1. e4 {[%emt 0:00:00]} c5 {[%emt 0:00:00]} 2. Nf3 {[%emt 0:00:00]} d6 {[%emt 0:00:00]} 3. d4 {[%emt 0:00:08]} cxd4 {[%emt 0:00:00]} 4. Nxd4 {[%emt 0:00:06]} Nf6 {[%emt 0:00:00]} 5. f3 {[%emt 0:00:08]} e5 {[%emt 0:00:24]} 6. Nb3 {[%emt 0:00:08]} d5 {[%emt 0:01:54]} 7. Bg5 {[%emt 0:00:08]} Be6 {[%emt 0:00:04]} 8. Bxf6 {[%emt 0:00:46]} gxf6 {[%emt 0:00:05]} 9. exd5 {[%emt 0:00:11]} Qxd5 {[%emt 0:00:37]} 10. Qxd5 {[%emt 0:00:13]} Bxd5 {[%emt 0:00:04]} 11. Nc3 {[%emt 0:00:11]} Be6 {[%emt 0:00:45]} 12. O-O-O {[%emt 0:01:59]} Nc6 {[%emt 0:02:55]} 13. Bb5 {[%emt 0:04:06]} Rc8 {[%emt 0:03:37]} 14. Ne4 {[%emt 0:06:12]} Ke7 {[%emt 0:42:00]} 15. Nec5 {[%emt 0:24:56]} b6 {[%emt 0:02:59]} 16. Nxe6 {[%emt 0:01:06]} fxe6 {[%emt 0:00:02]} 17. Kb1 {[%emt 0:03:44]} Bh6 {[%emt 0:07:13]} 18. Rhe1 {[%emt 0:00:55]} Rhg8 {[%emt 0:08:58]} 19. g3 {[%emt 0:00:16]} Rgd8 {[%emt 0:01:42]} 20. Rxd8 {[%emt 0:07:55]} Nxd8 {[%emt 0:01:43]} 21. Bd3 {[%emt 0:00:19]} Nf7 {[%emt 0:00:42]} 22. h4 {[%emt 0:10:05]} f5 {[%emt 0:04:40]} 23. g4 {[%emt 0:01:32]} fxg4 {[%emt 0:10:14]} 24. fxg4 {[%emt 0:00:20]} Bf4 {[%emt 0:00:07]} 25. g5 {[%emt 0:01:21]} h6 {[%emt 0:00:44]} 26. g6 {[%emt 0:01:05]} Nd6 {[%emt 0:00:02]} 27. c3 {[%emt 0:02:05]} Kf6 {[%emt 0:01:02]} 28. h5 {[%emt 0:03:32]} Nf5 {[%emt 0:03:16]} 29. Rd1 {[%emt 0:04:11]} Ng3 {[%emt 0:04:32]} 30. Bc2 {[%emt 0:02:59]} Rc7 {[%emt 0:00:12]} 31. Nd2 {[%emt 0:01:42]} Bxd2 {[%emt 0:03:13]} 32. Rxd2 {[%emt 0:00:18]} Nxh5 {[%emt 0:00:04]} 33. Rh2 {[%emt 0:00:21]} Kg5 {[%emt 0:01:16]} 34. Rg2+ {[%emt 0:00:04]} Kf6 {[%emt 0:00:01]} 35. Rh2 {[%emt 0:00:01]} Ng3 {[%emt 0:01:41]} 36. g7 {[%emt 0:09:08]} Rxg7 {[%emt 0:00:19]} 37. Rxh6+ {[%emt 0:00:03]} Kg5 {[%emt 0:00:32]} 38. Rxe6 {[%emt 0:00:02]} Kf4 {[%emt 0:00:05]} 39. b4 {[%emt 0:00:11]} e4 {[%emt 0:00:21]} 40. Kb2 {[%emt 0:01:06]} e3 {[%emt 0:01:15]} 41. Bd3 {[%emt 0:30:41]} Kf3 {[%emt 0:06:34]} 42. Kc2 {[%emt 0:00:00]} Nh5 {[%emt 0:03:11]} 43. c4 {[%emt 0:00:00]} Nf4 {[%emt 0:04:10]} 44. Be4+ {[%emt 0:00:00]} Kf2 {[%emt 0:02:25]} 45. Rf6 {[%emt 0:00:00]} Kg3 {[%emt 0:05:16]} 46. Kd1 {[%emt 0:00:00]} Re7 {[%emt 0:01:54]} 0-1

[Event "Biel Master Tournament 2019"]
[Site "Biel"]
[Date "2019.07.29"]
[Round "7.13"]
[White "Vaibhav, Suri"]
[Black "Aditya Mittal"]
[Result "1-0"]
[ECO "B92"]
[WhiteElo "2591"]
[BlackElo "2429"]
[Annotator "ChessBase"]
[PlyCount "105"]
[EventDate "2019.07.20"]
[EventType "swiss"]
[EventCountry "SUI"]
[SourceTitle "playchess.com"]
[Source "ChessBase"]
[SourceQuality "1"]
[TimeControl "40/5400+30:1800+30"]

1. e4 {[%emt 0:00:00]} c5 {[%emt 0:00:00]} 2. Nf3 {[%emt 0:00:00]} d6 {[%emt 0:00:00]} 3. d4 {[%emt 0:00:03]} cxd4 {[%emt 0:00:00]} 4. Nxd4 {[%emt 0:00:08]} Nf6 {[%emt 0:00:07]} 5. Nc3 {[%emt 0:00:04]} a6 {[%emt 0:00:10]} 6. Be2 {[%emt 0:00:08]} e5 {[%emt 0:00:12]} 7. Nb3 {[%emt 0:00:06]} Be7 {[%emt 0:00:09]} 8. Be3 {[%emt 0:00:06]} Be6 {[%emt 0:05:25]} 9. f4 {[%emt 0:01:45]} exf4 {[%emt 0:06:26]} 10. Bxf4 {[%emt 0:00:10]} Qb6 {[%emt 0:01:28]} 11. Qd2 {[%emt 0:03:48]} Nc6 {[%emt 0:05:00]} 12. O-O-O {[%emt 0:05:00]} Ne5 {[%emt 0:03:42]} 13. Nd4 {[%emt 0:06:50]} O-O {[%emt 0:05:56]} 14. g4 {[%emt 0:17:09]} Qa5 {[%emt 0:18:41]} 15. Nf5 {[%emt 0:15:03]} Bxf5 {[%emt 0:04:01]} 16. exf5 {[%emt 0:00:06]} Rfe8 {[%emt 0:04:51]} 17. g5 {[%emt 0:04:02]} Nfd7 {[%emt 0:00:26]} 18. Kb1 {[%emt 0:05:23]} Rac8 {[%emt 0:09:46]} 19. Nd5 {[%emt 0:04:09]} Qxd2 {[%emt 0:00:11]} 20. Nxe7+ {[%emt 0:13:34]} Kf8 {[%emt 0:00:37]} 21. Rxd2 {[%emt 0:00:30]} Kxe7 {[%emt 0:00:02]} 22. Rhd1 {[%emt 0:01:30]} Rc6 {[%emt 0:00:32]} 23. Bf1 {[%emt 0:00:48]} Rec8 {[%emt 0:13:27]} 24. b3 {[%emt 0:02:38]} R8c7 {[%emt 0:06:08]} 25. h4 {[%emt 0:02:12]} Nc5 {[%emt 0:02:03]} 26. Bg2 {[%emt 0:03:40]} Rb6 {[%emt 0:00:13]} 27. f6+ {[%emt 0:02:29]} gxf6 {[%emt 0:00:08]} 28. gxf6+ {[%emt 0:00:03]} Kxf6 {[%emt 0:00:18]} 29. Bg5+ {[%emt 0:00:58]} Kg7 {[%emt 0:07:06]} 30. Bd8 {[%emt 0:00:20]} Ne6 {[%emt 0:01:12]} 31. Bxc7 {[%emt 0:00:20]} Nxc7 {[%emt 0:00:02]} 32. Rxd6 {[%emt 0:00:52]} Rb4 {[%emt 0:02:07]} 33. h5 {[%emt 0:04:15]} Nb5 {[%emt 0:01:48]} 34. h6+ {[%emt 0:00:14]} Kf8 {[%emt 0:00:01]} 35. Rd8+ {[%emt 0:00:18]} Ke7 {[%emt 0:00:01]} 36. R1d2 {[%emt 0:02:03]} b6 {[%emt 0:02:59]} 37. Rc8 {[%emt 0:03:49]} Rh4 {[%emt 0:01:11]} 38. a4 {[%emt 0:01:14]} Nd6 {[%emt 0:01:07]} 39. Rc7+ {[%emt 0:00:32]} Ke6 {[%emt 0:00:39]} 40. a5 {[%emt 0:02:06]} bxa5 {[%emt 0:00:51]} 41. Ra7 {[%emt 0:02:30]} Ne4 {[%emt 0:07:57]} 42. Rxa6+ {[%emt 0:02:03]} Kf5 {[%emt 0:00:17]} 43. Bxe4+ {[%emt 0:00:23]} Rxe4 {[%emt 0:00:38]} 44. Rxa5 {[%emt 0:00:49]} Kg6 {[%emt 0:00:12]} 45. Ra6+ {[%emt 0:01:39]} f6 {[%emt 0:00:11]} 46. c4 {[%emt 0:01:39]} Kxh6 {[%emt 0:00:46]} 47. Rxf6+ {[%emt 0:07:54]} Kg5 {[%emt 0:00:10]} 48. Rff2 {[%emt 0:01:02]} Nc6 {[%emt 0:01:49]} 49. Rg2+ {[%emt 0:01:09]} Kf4 {[%emt 0:00:53]} 50. Rdf2+ {[%emt 0:01:01]} Ke5 {[%emt 0:00:26]} 51. Re2 {[%emt 0:00:37]} Nd4 {[%emt 0:00:24]} 52. Rg5+ {[%emt 0:01:35]} Kf4 {[%emt 0:00:08]} 53. Rg4+ {[%emt 0:00:04]} 1-0

[Event "Biel Master Tournament 2019"]
[Site "Biel"]
[Date "2019.07.29"]
[Round "7.14"]
[White "Moussard, Jules"]
[Black "Akash G"]
[Result "1-0"]
[ECO "C95"]
[WhiteElo "2576"]
[BlackElo "2394"]
[Annotator "ChessBase"]
[PlyCount "75"]
[EventDate "2019.07.20"]
[EventType "swiss"]
[EventCountry "SUI"]
[SourceTitle "playchess.com"]
[Source "ChessBase"]
[SourceQuality "1"]
[TimeControl "40/5400+30:1800+30"]

1. e4 {[%emt 0:11:14]} e5 {[%emt 0:00:00]} 2. Nf3 {[%emt 0:00:07]} Nc6 {[%emt 0:00:05]} 3. Bb5 {[%emt 0:00:04]} a6 {[%emt 0:00:22]} 4. Ba4 {[%emt 0:00:06]} Nf6 {[%emt 0:00:11]} 5. O-O {[%emt 0:00:28]} Be7 {[%emt 0:00:16]} 6. Re1 {[%emt 0:00:21]} b5 {[%emt 0:00:31]} 7. Bb3 {[%emt 0:00:05]} d6 {[%emt 0:00:09]} 8. c3 {[%emt 0:00:06]} O-O {[%emt 0:00:11]} 9. h3 {[%emt 0:00:47]} Nb8 {[%emt 0:00:20]} 10. d4 {[%emt 0:00:07]} Nbd7 {[%emt 0:00:08]} 11. Nbd2 {[%emt 0:01:56]} Bb7 {[%emt 0:00:12]} 12. Bc2 {[%emt 0:00:11]} Re8 {[%emt 0:00:11]} 13. Nf1 {[%emt 0:00:06]} Bf8 {[%emt 0:00:08]} 14. Ng3 {[%emt 0:00:05]} g6 {[%emt 0:00:26]} 15. a4 {[%emt 0:00:24]} c5 {[%emt 0:00:50]} 16. d5 {[%emt 0:04:42]} c4 {[%emt 0:00:08]} 17. Bg5 {[%emt 0:00:32]} h6 {[%emt 0:01:01]} 18. Be3 {[%emt 0:00:12]} Nc5 {[%emt 0:00:23]} 19. Nd2 {[%emt 0:16:54]} Nfd7 {[%emt 0:09:22]} 20. Qe2 {[%emt 0:06:13]} Qc7 {[%emt 0:03:55]} 21. Ra3 {[%emt 0:03:01]} Nb6 {[%emt 0:02:44]} 22. a5 {[%emt 0:04:09]} Nbd7 {[%emt 0:03:28]} 23. Rc1 {[%emt 0:10:35]} Bc8 {[%emt 0:16:35]} 24. Ngf1 {[%emt 0:10:25]} Bg7 {[%emt 0:15:37]} 25. Nxc4 {[%emt 0:09:02]} bxc4 {[%emt 0:01:58]} 26. Qxc4 {[%emt 0:00:05]} Ne6 {[%emt 0:06:37]} 27. Nd2 {[%emt 0:02:34]} Qxc4 {[%emt 0:10:48]} 28. Nxc4 {[%emt 0:00:17]} Nf4 {[%emt 0:00:08]} 29. Nxd6 {[%emt 0:01:56]} Rd8 {[%emt 0:00:14]} 30. Nxc8 {[%emt 0:00:42]} Rdxc8 {[%emt 0:00:40]} 31. Kf1 {[%emt 0:00:37]} Nc5 {[%emt 0:03:15]} 32. b4 {[%emt 0:11:25]} Ncd3 {[%emt 0:01:08]} 33. Rb1 {[%emt 0:01:23]} Nxb4 {[%emt 0:08:28]} 34. Rxb4 {[%emt 0:00:16]} Bf8 {[%emt 0:00:05]} 35. Rbb3 {[%emt 0:01:05]} Bxa3 {[%emt 0:00:06]} 36. Rxa3 {[%emt 0:00:03]} Rab8 {[%emt 0:05:39]} 37. Bb6 {[%emt 0:00:41]} Rc4 {[%emt 0:00:40]} 38. g3 {[%emt 0:00:52]} 1-0

[Event "Biel Master Tournament 2019"]
[Site "Biel"]
[Date "2019.07.29"]
[Round "7.15"]
[White "Mastrovasilis, Athanasios"]
[Black "Dhulipalla Bala Chandra Prasad"]
[Result "1/2-1/2"]
[ECO "D31"]
[WhiteElo "2518"]
[BlackElo "2419"]
[Annotator "ChessBase"]
[PlyCount "132"]
[EventDate "2019.07.20"]
[EventType "swiss"]
[EventCountry "SUI"]
[SourceTitle "playchess.com"]
[Source "ChessBase"]
[SourceQuality "1"]
[TimeControl "40/5400+30:1800+30"]

1. d4 {[%emt 0:04:04]} d5 {[%emt 0:00:00]} 2. c4 {[%emt 0:00:14]} e6 {[%emt 0:00:00]} 3. Nc3 {[%emt 0:00:09]} a6 {[%emt 0:00:00]} 4. cxd5 {[%emt 0:01:29]} exd5 {[%emt 0:00:00]} 5. Nf3 {[%emt 0:01:30]} c6 {[%emt 0:00:00]} 6. Bf4 {[%emt 0:02:12]} Bd6 {[%emt 0:00:44]} 7. Bxd6 {[%emt 0:01:14]} Qxd6 {[%emt 0:00:06]} 8. e3 {[%emt 0:00:07]} Nf6 {[%emt 0:02:05]} 9. Qc2 {[%emt 0:05:14]} O-O {[%emt 0:04:08]} 10. Bd3 {[%emt 0:02:53]} b6 {[%emt 0:22:34]} 11. O-O {[%emt 0:05:32]} Bb7 {[%emt 0:01:56]} 12. e4 {[%emt 0:16:11]} dxe4 {[%emt 0:00:56]} 13. Nxe4 {[%emt 0:00:09]} Nxe4 {[%emt 0:00:12]} 14. Bxe4 {[%emt 0:00:03]} h6 {[%emt 0:04:34]} 15. Ne5 {[%emt 0:10:38]} Nd7 {[%emt 0:19:33]} 16. Nc4 {[%emt 0:03:46]} Qc7 {[%emt 0:03:16]} 17. Rfe1 {[%emt 0:04:53]} Nf6 {[%emt 0:10:02]} 18. Bf3 {[%emt 0:05:06]} Rad8 {[%emt 0:08:53]} 19. Rad1 {[%emt 0:08:29]} b5 {[%emt 0:01:29]} 20. Ne3 {[%emt 0:05:21]} Rd7 {[%emt 0:02:15]} 21. Qc5 {[%emt 0:01:17]} g6 {[%emt 0:07:56]} 22. h4 {[%emt 0:05:00]} h5 {[%emt 0:02:01]} 23. Qg5 {[%emt 0:01:33]} Nh7 {[%emt 0:00:23]} 24. Qc5 {[%emt 0:05:11]} Rfd8 {[%emt 0:00:07]} 25. Rc1 {[%emt 0:01:35]} Qf4 {[%emt 0:01:27]} 26. Bxc6 {[%emt 0:01:10]} Bxc6 {[%emt 0:00:23]} 27. Qxc6 {[%emt 0:00:01]} Rd6 {[%emt 0:02:18]} 28. Qb7 {[%emt 0:00:54]} Qxh4 {[%emt 0:00:29]} 29. d5 {[%emt 0:00:53]} Qb4 {[%emt 0:01:04]} 30. Red1 {[%emt 0:02:13]} Ng5 {[%emt 0:01:48]} 31. Rc8 {[%emt 0:02:27]} Rxc8 {[%emt 0:02:05]} 32. Qxc8+ {[%emt 0:00:01]} Kg7 {[%emt 0:00:17]} 33. Qc3+ {[%emt 0:01:41]} Qxc3 {[%emt 0:00:05]} 34. bxc3 {[%emt 0:00:01]} Ne4 {[%emt 0:00:22]} 35. c4 {[%emt 0:00:07]} bxc4 {[%emt 0:00:04]} 36. Nxc4 {[%emt 0:00:04]} Rd8 {[%emt 0:00:32]} 37. d6 {[%emt 0:02:04]} Kf6 {[%emt 0:01:02]} 38. f3 {[%emt 0:01:18]} Nc3 {[%emt 0:01:31]} 39. Rd3 {[%emt 0:01:30]} Nxa2 {[%emt 0:00:48]} 40. Na5 {[%emt 0:00:41]} Rd7 {[%emt 0:01:36]} 41. Nc4 {[%emt 0:09:48]} Nb4 {[%emt 0:15:21]} 42. Rd4 {[%emt 0:01:44]} Nc6 {[%emt 0:00:46]} 43. Rd5 {[%emt 0:02:48]} Ke6 {[%emt 0:03:30]} 44. Rc5 {[%emt 0:00:48]} Nd4 {[%emt 0:00:38]} 45. Re5+ {[%emt 0:02:48]} Kf6 {[%emt 0:00:02]} 46. Ra5 {[%emt 0:00:19]} Nb5 {[%emt 0:01:21]} 47. Rxa6 {[%emt 0:00:45]} Ke6 {[%emt 0:00:12]} 48. Ra1 {[%emt 0:02:41]} Nxd6 {[%emt 0:02:14]} 49. Re1+ {[%emt 0:00:21]} Kf6 {[%emt 0:00:16]} 50. Rd1 {[%emt 0:00:13]} Ke7 {[%emt 0:00:26]} 51. Re1+ {[%emt 0:00:08]} Kd8 {[%emt 0:01:30]} 52. Nxd6 {[%emt 0:00:38]} Rxd6 {[%emt 0:00:10]} 53. Kf2 {[%emt 0:00:37]} Re6 {[%emt 0:00:36]} 54. Ra1 {[%emt 0:00:49]} Ke7 {[%emt 0:00:05]} 55. f4 {[%emt 0:00:57]} Kf6 {[%emt 0:01:05]} 56. Kf3 {[%emt 0:00:28]} Rb6 {[%emt 0:00:06]} 57. Ra3 {[%emt 0:00:44]} Rb5 {[%emt 0:00:35]} 58. g3 {[%emt 0:01:17]} Kf5 {[%emt 0:00:18]} 59. Rc3 {[%emt 0:00:14]} f6 {[%emt 0:00:06]} 60. Ra3 {[%emt 0:00:10]} g5 {[%emt 0:00:12]} 61. fxg5 {[%emt 0:00:05]} Kxg5 {[%emt 0:00:05]} 62. Rc3 {[%emt 0:01:00]} Rf5+ {[%emt 0:00:25]} 63. Kg2 {[%emt 0:00:10]} Kg4 {[%emt 0:00:26]} 64. Rc4+ {[%emt 0:00:05]} Kg5 {[%emt 0:00:02]} 65. Rc8 {[%emt 0:00:35]} Ra5 {[%emt 0:00:10]} 66. Rc3 {[%emt 0:00:54]} Rf5 {[%emt 0:00:04]} 1/2-1/2

[Event "Biel Master Tournament 2019"]
[Site "Biel"]
[Date "2019.07.29"]
[Round "7.16"]
[White "Sedlak, Nikola"]
[Black "Pranav Anand"]
[Result "1-0"]
[ECO "B23"]
[WhiteElo "2586"]
[BlackElo "2347"]
[Annotator "ChessBase"]
[PlyCount "117"]
[EventDate "2019.07.20"]
[EventType "swiss"]
[EventCountry "SUI"]
[SourceTitle "playchess.com"]
[Source "ChessBase"]
[SourceQuality "1"]
[TimeControl "40/5400+30:1800+30"]

1. e4 {[%emt 0:03:56]} c5 {[%emt 0:00:00]} 2. Nc3 {[%emt 0:00:14]} Nc6 {[%emt 0:00:00]} 3. Bb5 {[%emt 0:00:16]} Nd4 {[%emt 0:00:08]} 4. Nf3 {[%emt 0:00:13]} Nxb5 {[%emt 0:00:28]} 5. Nxb5 {[%emt 0:00:09]} d6 {[%emt 0:00:25]} 6. d4 {[%emt 0:00:40]} cxd4 {[%emt 0:03:17]} 7. Qxd4 {[%emt 0:03:46]} a6 {[%emt 0:05:05]} 8. Nc3 {[%emt 0:00:07]} e5 {[%emt 0:01:14]} 9. Qa4+ {[%emt 0:04:53]} b5 {[%emt 0:08:04]} 10. Qb3 {[%emt 0:00:37]} Be6 {[%emt 0:06:36]} 11. Nd5 {[%emt 0:03:22]} Nf6 {[%emt 0:03:58]} 12. Bg5 {[%emt 0:01:29]} Bxd5 {[%emt 0:01:24]} 13. exd5 {[%emt 0:00:30]} Be7 {[%emt 0:00:17]} 14. a4 {[%emt 0:02:28]} O-O {[%emt 0:00:23]} 15. Bxf6 {[%emt 0:00:51]} Bxf6 {[%emt 0:00:20]} 16. O-O {[%emt 0:00:39]} Rb8 {[%emt 0:07:48]} 17. axb5 {[%emt 0:08:06]} Rxb5 {[%emt 0:00:40]} 18. Qd3 {[%emt 0:00:11]} Qa8 {[%emt 0:20:24]} 19. Qxb5 {[%emt 0:07:20]} axb5 {[%emt 0:00:55]} 20. Rxa8 {[%emt 0:00:09]} Rxa8 {[%emt 0:00:03]} 21. Nd2 {[%emt 0:01:14]} Be7 {[%emt 0:06:22]} 22. g4 {[%emt 0:07:28]} Ra4 {[%emt 0:03:24]} 23. f3 {[%emt 0:01:10]} Kf8 {[%emt 0:06:52]} 24. Ne4 {[%emt 0:00:37]} Ra6 {[%emt 0:01:14]} 25. Kf2 {[%emt 0:00:41]} Bd8 {[%emt 0:00:59]} 26. Ke2 {[%emt 0:00:11]} Ke7 {[%emt 0:00:45]} 27. Kd3 {[%emt 0:01:27]} Ra4 {[%emt 0:02:56]} 28. c3 {[%emt 0:04:50]} Bb6 {[%emt 0:01:38]} 29. h4 {[%emt 0:02:54]} f6 {[%emt 0:07:22]} 30. h5 {[%emt 0:00:13]} Ba7 {[%emt 0:02:52]} 31. Rh1 {[%emt 0:03:33]} h6 {[%emt 0:01:40]} 32. Kc2 {[%emt 0:02:28]} Bb6 {[%emt 0:00:54]} 33. b4 {[%emt 0:05:54]} Ra2+ {[%emt 0:03:02]} 34. Kb3 {[%emt 0:00:18]} Re2 {[%emt 0:01:12]} 35. Ra1 {[%emt 0:01:20]} Re3 {[%emt 0:00:15]} 36. Rf1 {[%emt 0:01:20]} Rd3 {[%emt 0:00:46]} 37. Kc2 {[%emt 0:00:37]} Rxd5 {[%emt 0:00:44]} 38. Ra1 {[%emt 0:00:13]} Be3 {[%emt 0:01:45]} 39. Ra8 {[%emt 0:01:23]} Bb6 {[%emt 0:01:34]} 40. Rg8 {[%emt 0:02:40]} Kf7 {[%emt 0:00:17]} 41. Rb8 {[%emt 0:30:21]} Be3 {[%emt 0:30:21]} 42. Rb7+ {[%emt 0:00:10]} Kf8 {[%emt 0:00:16]} 43. Rd7 {[%emt 0:00:39]} Bb6 {[%emt 0:01:16]} 44. Rxd6 {[%emt 0:00:42]} Rxd6 {[%emt 0:00:06]} 45. Nxd6 {[%emt 0:00:07]} g6 {[%emt 0:00:52]} 46. hxg6 {[%emt 0:01:08]} Kg7 {[%emt 0:00:09]} 47. Kd3 {[%emt 0:01:19]} Kxg6 {[%emt 0:00:14]} 48. Ke4 {[%emt 0:04:13]} Bf2 {[%emt 0:00:17]} 49. Nxb5 {[%emt 0:01:04]} Be1 {[%emt 0:00:08]} 50. Ke3 {[%emt 0:00:57]} f5 {[%emt 0:00:18]} 51. Ke2 {[%emt 0:00:38]} Bg3 {[%emt 0:00:35]} 52. Nd6 {[%emt 0:00:39]} fxg4 {[%emt 0:00:26]} 53. fxg4 {[%emt 0:00:08]} h5 {[%emt 0:00:42]} 54. Ne4 {[%emt 0:00:47]} Bh4 {[%emt 0:00:12]} 55. g5 {[%emt 0:03:25]} Bxg5 {[%emt 0:00:35]} 56. Nxg5 {[%emt 0:00:18]} Kxg5 {[%emt 0:00:01]} 57. b5 {[%emt 0:00:06]} h4 {[%emt 0:00:06]} 58. b6 {[%emt 0:00:04]} h3 {[%emt 0:00:05]} 59. Kf1 {[%emt 0:00:09]} 1-0

[Event "Biel Master Tournament 2019"]
[Site "Biel"]
[Date "2019.07.29"]
[Round "7.17"]
[White "Lee, Jun Hyeok"]
[Black "Lalith Babu M R"]
[Result "0-1"]
[ECO "A45"]
[WhiteElo "2383"]
[BlackElo "2580"]
[Annotator "ChessBase"]
[PlyCount "56"]
[EventDate "2019.07.20"]
[EventType "swiss"]
[EventCountry "SUI"]
[SourceTitle "playchess.com"]
[Source "ChessBase"]
[SourceQuality "1"]
[TimeControl "40/5400+30:1800+30"]

1. d4 {[%emt 0:00:00]} Nf6 {[%emt 0:00:00]} 2. Bg5 {[%emt 0:00:00]} Ne4 {[%emt 0:00:05]} 3. Bf4 {[%emt 0:00:00]} c5 {[%emt 0:00:07]} 4. f3 {[%emt 0:00:05]} Nf6 {[%emt 0:02:08]} 5. dxc5 {[%emt 0:00:18]} e6 {[%emt 0:05:43]} 6. Bd6 {[%emt 0:02:29]} b6 {[%emt 0:04:48]} 7. Bxf8 {[%emt 0:02:55]} Rxf8 {[%emt 0:00:04]} 8. Nc3 {[%emt 0:03:48]} bxc5 {[%emt 0:00:24]} 9. e4 {[%emt 0:01:54]} Nc6 {[%emt 0:07:24]} 10. Qd2 {[%emt 0:02:45]} d5 {[%emt 0:05:44]} 11. exd5 {[%emt 0:08:54]} exd5 {[%emt 0:00:40]} 12. O-O-O {[%emt 0:03:58]} Be6 {[%emt 0:00:57]} 13. Qg5 {[%emt 0:07:07]} Rb8 {[%emt 0:07:33]} 14. Bb5 {[%emt 0:16:14]} Qb6 {[%emt 0:01:04]} 15. Nge2 {[%emt 0:06:07]} d4 {[%emt 0:03:06]} 16. Rhe1 {[%emt 0:14:03]} a6 {[%emt 0:18:24]} 17. Qxg7 {[%emt 0:03:16]} dxc3 {[%emt 0:06:32]} 18. Nxc3 {[%emt 0:02:46]} axb5 {[%emt 0:03:22]} 19. Qxf6 {[%emt 0:03:01]} Nd4 {[%emt 0:03:56]} 20. Qe5 {[%emt 0:05:33]} Rd8 {[%emt 0:15:21]} 21. Nd5 {[%emt 0:01:56]} Qd6 {[%emt 0:00:39]} 22. Nc7+ {[%emt 0:12:03]} Ke7 {[%emt 0:00:54]} 23. Qg5+ {[%emt 0:01:41]} f6 {[%emt 0:00:11]} 24. Qe3 {[%emt 0:00:42]} Qxc7 {[%emt 0:01:24]} 25. c3 {[%emt 0:00:19]} Kf7 {[%emt 0:00:46]} 26. Qh6 {[%emt 0:00:32]} Kg8 {[%emt 0:00:31]} 27. cxd4 {[%emt 0:00:26]} cxd4+ {[%emt 0:00:06]} 28. Kb1 {[%emt 0:00:02]} Qc4 {[%emt 0:00:10]} 0-1

[Event "Biel Master Tournament 2019"]
[Site "Biel"]
[Date "2019.07.29"]
[Round "7.18"]
[White "Santos Ruiz, Miguel"]
[Black "Omar, Noaman"]
[Result "1/2-1/2"]
[ECO "D35"]
[WhiteElo "2567"]
[BlackElo "2369"]
[Annotator "ChessBase"]
[PlyCount "91"]
[EventDate "2019.07.20"]
[EventType "swiss"]
[EventCountry "SUI"]
[SourceTitle "playchess.com"]
[Source "ChessBase"]
[SourceQuality "1"]
[TimeControl "40/5400+30:1800+30"]

1. d4 {[%emt 0:00:34]} d5 {[%emt 0:00:00]} 2. c4 {[%emt 0:00:04]} e6 {[%emt 0:00:00]} 3. Nc3 {[%emt 0:00:06]} Be7 {[%emt 0:00:05]} 4. cxd5 {[%emt 0:00:05]} exd5 {[%emt 0:00:05]} 5. Bf4 {[%emt 0:00:03]} Nf6 {[%emt 0:01:08]} 6. e3 {[%emt 0:00:12]} Bf5 {[%emt 0:00:34]} 7. Nge2 {[%emt 0:00:14]} O-O {[%emt 0:00:38]} 8. a3 {[%emt 0:00:13]} c6 {[%emt 0:04:44]} 9. Ng3 {[%emt 0:01:07]} Be6 {[%emt 0:01:11]} 10. Bd3 {[%emt 0:00:21]} c5 {[%emt 0:01:20]} 11. Nf5 {[%emt 0:00:32]} Bxf5 {[%emt 0:00:24]} 12. Bxf5 {[%emt 0:00:22]} cxd4 {[%emt 0:00:27]} 13. exd4 {[%emt 0:25:39]} Nc6 {[%emt 0:34:35]} 14. b4 {[%emt 0:11:09]} g6 {[%emt 0:17:22]} 15. Bh3 {[%emt 0:07:00]} Nh5 {[%emt 0:03:26]} 16. Bh6 {[%emt 0:06:50]} Re8 {[%emt 0:02:43]} 17. O-O {[%emt 0:00:05]} Bg5 {[%emt 0:00:28]} 18. Bxg5 {[%emt 0:00:55]} Qxg5 {[%emt 0:00:04]} 19. g3 {[%emt 0:00:49]} Nf4 {[%emt 0:05:17]} 20. Bd7 {[%emt 0:02:39]} Red8 {[%emt 0:00:05]} 21. Bxc6 {[%emt 0:00:47]} bxc6 {[%emt 0:00:32]} 22. h4 {[%emt 0:00:05]} Qf6 {[%emt 0:04:42]} 23. gxf4 {[%emt 0:00:12]} Qxf4 {[%emt 0:00:43]} 24. Re1 {[%emt 0:14:02]} Re8 {[%emt 0:01:59]} 25. Qd3 {[%emt 0:02:14]} Qxh4 {[%emt 0:00:25]} 26. Re3 {[%emt 0:00:44]} Rxe3 {[%emt 0:02:13]} 27. Qxe3 {[%emt 0:00:40]} Qg4+ {[%emt 0:01:04]} 28. Kf1 {[%emt 0:00:16]} h5 {[%emt 0:01:35]} 29. b5 {[%emt 0:08:06]} Qd7 {[%emt 0:03:15]} 30. Qf3 {[%emt 0:03:29]} Re8 {[%emt 0:03:45]} 31. bxc6 {[%emt 0:04:15]} Qxc6 {[%emt 0:00:02]} 32. Nxd5 {[%emt 0:00:06]} Kg7 {[%emt 0:00:07]} 33. Kg2 {[%emt 0:00:28]} Rd8 {[%emt 0:00:55]} 34. Nc3 {[%emt 0:02:20]} Qxf3+ {[%emt 0:00:11]} 35. Kxf3 {[%emt 0:00:03]} Rxd4 {[%emt 0:00:02]} 36. Ke3 {[%emt 0:00:25]} Rd7 {[%emt 0:00:17]} 37. Rb1 {[%emt 0:00:40]} h4 {[%emt 0:01:55]} 38. Ne4 {[%emt 0:02:20]} Re7 {[%emt 0:00:30]} 39. Kf3 {[%emt 0:00:38]} Rd7 {[%emt 0:01:38]} 40. Rb3 {[%emt 0:01:02]} f5 {[%emt 0:06:35]} 41. Nc5 {[%emt 0:30:36]} Rd5 {[%emt 0:30:25]} 42. Rb7+ {[%emt 0:06:01]} Kh6 {[%emt 0:01:15]} 43. Rc7 {[%emt 0:00:00]} g5 {[%emt 0:00:00]} 44. Rc6+ {[%emt 0:00:00]} Kh5 {[%emt 0:00:00]} 45. Kg2 {[%emt 0:00:00]} g4 {[%emt 0:00:00]} 46. Ne6 {[%emt 0:00:00]} 1/2-1/2